[Event "GER-chW Blitz 2019"]
[Site "Magdeburg"]
[Date "2019.05.25"]
[Round "4.8"]
[White "Daemering, Katrin"]
[Black "Silz, Elisa"]
[Result "0-1"]
[ECO "A05"]
[WhiteElo "2003"]
[BlackElo "1977"]
[Annotator "NA"]
[PlyCount "80"]
[EventDate "2019.05.25"]
[EventType "tourn"]
[EventCountry "GER"]
[SourceTitle "playchess.com"]
[Source "ChessBase"]
[SourceQuality "1"]
[TimeControl "180+2"]

1. Nf3 {[%emt 0:00:00]} Nf6 {[%emt 0:00:00]} 2. g3 {[%emt 0:00:00]} g6 {[%emt 0:00:00]} 3. Bg2 Bg7 4. d3 {[%emt 0:00:02]} d6 {[%emt 0:00:00]} 5. e4 {[%emt 0:00:01]} O-O {[%emt 0:00:01]} 6. O-O {[%emt 0:00:02]} Nbd7 {[%emt 0:00:01]} 7. h3 {[%emt 0:00:01]} c5 {[%emt 0:00:01]} 8. Be3 {[%emt 0:00:05]} Rb8 {[%emt 0:00:02]} 9. Nc3 {[%emt 0:00:01]} b5 {[%emt 0:00:01]} 10. a3 {[%emt 0:00:01]} a6 {[%emt 0:00:03]} 11. Qd2 {[%emt 0:00:03]} Bb7 {[%emt 0:00:07]} 12. Rad1 {[%emt 0:00:05]} Qc7 {[%emt 0:00:02]} 13. Ne1 {[%emt 0:00:08]} e6 {[%emt 0:00:02]} 14. f4 {[%emt 0:00:01]} Nh5 {[%emt 0:00:12]} 15. Kh2 {[%emt 0:00:06]} f5 {[%emt 0:00:02]} 16. Nf3 {[%emt 0:00:11]} d5 {[%emt 0:00:18]} 17. exd5 {[%emt 0:00:11]} exd5 {[%emt 0:00:02]} 18. d4 {[%emt 0:00:05]} c4 {[%emt 0:00:11]} 19. Ng5 {[%emt 0:00:01]} Qd6 {[%emt 0:00:10]} 20. Rde1 {[%emt 0:00:12]} Nhf6 {[%emt 0:00:03]} 21. Bg1 {[%emt 0:00:08]} Ne4 {[%emt 0:00:07]} 22. Qd1 {[%emt 0:00:17]} Ndf6 {[%emt 0:00:09]} 23. Nf3 {[%emt 0:00:03]} Nxc3 {[%emt 0:00:08]} 24. bxc3 {[%emt 0:00:01]} Ne4 {[%emt 0:00:01]} 25. Re3 {[%emt 0:00:11]} Rbe8 {[%emt 0:00:10]} 26. Ne5 {[%emt 0:00:02]} Qxa3 {[%emt 0:00:13]} 27. Qe1 {[%emt 0:00:14]} Qd6 {[%emt 0:00:06]} 28. Bf3 {[%emt 0:00:12]} h6 {[%emt 0:00:11]} 29. Kh1 {[%emt 0:00:02]} Re7 {[%emt 0:00:10]} 30. Bh2 {[%emt 0:00:01]} g5 {[%emt 0:00:09]} 31. Bg2 {[%emt 0:00:27]} a5 {[%emt 0:00:25]} 32. Qe2 {[%emt 0:00:06]} b4 {[%emt 0:00:06]} 33. cxb4 {[%emt 0:00:02]} axb4 {[%emt 0:00:00]} 34. Bxe4 {[%emt 0:00:10]} fxe4 {[%emt 0:00:07]} 35. fxg5 {[%emt 0:00:10]} Rxf1+ {[%emt 0:00:14]} 36. Qxf1 {[%emt 0:00:01]} Bxe5 {[%emt 0:00:02]} 37. dxe5 {[%emt 0:00:05]} Qxe5 {[%emt 0:00:04]} 38. gxh6 {[%emt 0:00:06]} d4 {[%emt 0:00:02]} 39. Re1 {[%emt 0:00:08]} e3+ {[%emt 0:00:02]} 40. Kg1 {[%emt 0:00:02]} Qd5 {[%emt 0:00:03]} 0-1

[Event "GER-chW Blitz 2019"]
[Site "Magdeburg"]
[Date "2019.05.25"]
[Round "4.9"]
[White "Sieber, Fiona"]
[Black "Rath, Alina"]
[Result "1-0"]
[ECO "B65"]
[WhiteElo "2250"]
[BlackElo "2042"]
[Annotator "NA"]
[PlyCount "107"]
[EventDate "2019.05.25"]
[EventType "tourn"]
[EventCountry "GER"]
[SourceTitle "playchess.com"]
[Source "ChessBase"]
[SourceQuality "1"]
[TimeControl "180+2"]

1. e4 {[%emt 0:00:00]} c5 {[%emt 0:00:00]} 2. Nf3 {[%emt 0:00:02]} Nc6 {[%emt 0:00:00]} 3. d4 {[%emt 0:00:00]} cxd4 {[%emt 0:00:01]} 4. Nxd4 {[%emt 0:00:02]} Nf6 {[%emt 0:00:01]} 5. Nc3 {[%emt 0:00:02]} d6 {[%emt 0:00:00]} 6. Bg5 {[%emt 0:00:02]} e6 {[%emt 0:00:01]} 7. Qd2 {[%emt 0:00:01]} Be7 {[%emt 0:00:01]} 8. f4 {[%emt 0:00:15]} O-O {[%emt 0:00:12]} 9. O-O-O {[%emt 0:00:02]} Nxd4 {[%emt 0:00:03]} 10. Qxd4 {[%emt 0:00:03]} Qa5 {[%emt 0:00:02]} 11. e5 {[%emt 0:00:10]} dxe5 {[%emt 0:00:25]} 12. Qxe5 {[%emt 0:00:02]} Qxe5 {[%emt 0:00:14]} 13. fxe5 {[%emt 0:00:01]} Nd5 {[%emt 0:00:02]} 14. Bxe7 {[%emt 0:00:03]} Nxe7 {[%emt 0:00:01]} 15. Be2 {[%emt 0:00:23]} Nc6 {[%emt 0:00:28]} 16. Rhe1 {[%emt 0:00:50]} Nxe5 {[%emt 0:00:13]} 17. Bf1 {[%emt 0:00:21]} Ng6 {[%emt 0:00:15]} 18. g3 {[%emt 0:00:06]} a6 {[%emt 0:00:02]} 19. Bg2 {[%emt 0:00:14]} Rb8 {[%emt 0:00:03]} 20. Ne4 {[%emt 0:00:04]} b5 {[%emt 0:00:13]} 21. Nc5 {[%emt 0:00:01]} a5 {[%emt 0:00:19]} 22. Rd6 {[%emt 0:00:08]} a4 {[%emt 0:00:04]} 23. a3 {[%emt 0:00:05]} Ne7 {[%emt 0:00:05]} 24. c3 {[%emt 0:00:07]} Nf5 {[%emt 0:00:09]} 25. Rd3 {[%emt 0:00:06]} g6 {[%emt 0:00:03]} 26. Bc6 {[%emt 0:00:09]} Ne7 {[%emt 0:00:07]} 27. Bg2 {[%emt 0:00:03]} Nf5 {[%emt 0:00:01]} 28. Kc2 {[%emt 0:00:11]} Kg7 {[%emt 0:00:01]} 29. b4 {[%emt 0:00:02]} h5 {[%emt 0:00:15]} 30. Re5 {[%emt 0:00:06]} Re8 {[%emt 0:00:11]} 31. Bc6 {[%emt 0:00:03]} Rf8 {[%emt 0:00:03]} 32. Ne4 {[%emt 0:00:04]} Ne7 {[%emt 0:00:08]} 33. Bxb5 {[%emt 0:00:02]} f6 {[%emt 0:00:01]} 34. Rc5 {[%emt 0:00:01]} f5 {[%emt 0:00:05]} 35. Nd6 {[%emt 0:00:01]} Kf6 {[%emt 0:00:03]} 36. Bxa4 {[%emt 0:00:01]} Nd5 {[%emt 0:00:04]} 37. Bb3 {[%emt 0:00:02]} Nb6 {[%emt 0:00:01]} 38. Rc6 {[%emt 0:00:02]} Kg7 {[%emt 0:00:02]} 39. Nxc8 {[%emt 0:00:02]} Rfxc8 {[%emt 0:00:04]} 40. Rxc8 {[%emt 0:00:01]} Rxc8 {[%emt 0:00:01]} 41. Bxe6 {[%emt 0:00:01]} Rc6 {[%emt 0:00:01]} 42. Bb3 {[%emt 0:00:01]} Kf6 {[%emt 0:00:01]} 43. a4 {[%emt 0:00:01]} Nc8 {[%emt 0:00:02]} 44. a5 {[%emt 0:00:00]} Nd6 {[%emt 0:00:01]} 45. c4 {[%emt 0:00:02]} Ne4 {[%emt 0:00:06]} 46. c5 {[%emt 0:00:02]} Nf2 {[%emt 0:00:01]} 47. Rd2 {[%emt 0:00:02]} Ne4 {[%emt 0:00:01]} 48. Re2 {[%emt 0:00:02]} Ke5 {[%emt 0:00:03]} 49. Kd3 {[%emt 0:00:01]} Rc7 {[%emt 0:00:02]} 50. a6 {[%emt 0:00:01]} Rd7+ {[%emt 0:00:00]} 51. Kc4 {[%emt 0:00:03]} Kf6 {[%emt 0:00:03]} 52. Bc2 {[%emt 0:00:02]} Nd2+ {[%emt 0:00:02]} 53. Kb5 {[%emt 0:00:01]} g5 {[%emt 0:00:04]} 54. c6 {[%emt 0:00:01]} 1-0

[Event "GER-chW Blitz 2019"]
[Site "Magdeburg"]
[Date "2019.05.25"]
[Round "4.10"]
[White "Osmanodja, Filiz"]
[Black "Birkholz, Olga"]
[Result "1-0"]
[ECO "B23"]
[WhiteElo "2260"]
[BlackElo "2031"]
[Annotator "NA"]
[PlyCount "79"]
[EventDate "2019.05.25"]
[EventType "tourn"]
[EventCountry "GER"]
[SourceTitle "playchess.com"]
[Source "ChessBase"]
[SourceQuality "1"]
[TimeControl "180+2"]

1. e4 {[%emt 0:00:00]} c5 {[%emt 0:00:00]} 2. Nc3 {[%emt 0:00:00]} g6 {[%emt 0:00:02]} 3. Nf3 {[%emt 0:00:02]} Bg7 {[%emt 0:00:01]} 4. d4 {[%emt 0:00:00]} cxd4 {[%emt 0:00:03]} 5. Nxd4 {[%emt 0:00:01]} a6 {[%emt 0:00:01]} 6. Be2 {[%emt 0:00:05]} d6 {[%emt 0:00:01]} 7. O-O {[%emt 0:00:11]} Bd7 {[%emt 0:00:04]} 8. Bg5 {[%emt 0:00:06]} Nc6 {[%emt 0:00:02]} 9. Nb3 {[%emt 0:00:01]} Nf6 {[%emt 0:00:06]} 10. Re1 {[%emt 0:00:03]} O-O {[%emt 0:00:03]} 11. Bf1 {[%emt 0:00:00]} b5 {[%emt 0:00:10]} 12. Nd5 {[%emt 0:00:07]} Nxd5 {[%emt 0:01:01]} 13. exd5 {[%emt 0:00:01]} Ne5 {[%emt 0:00:01]} 14. h3 {[%emt 0:00:54]} Re8 {[%emt 0:00:05]} 15. Nd4 {[%emt 0:00:12]} Qb6 {[%emt 0:00:21]} 16. c3 {[%emt 0:00:06]} Qc5 {[%emt 0:00:10]} 17. Nb3 {[%emt 0:00:39]} Qc7 {[%emt 0:00:05]} 18. f4 {[%emt 0:00:28]} Nc4 {[%emt 0:00:01]} 19. Bxc4 {[%emt 0:00:00]} Qxc4 {[%emt 0:00:06]} 20. Bxe7 {[%emt 0:00:22]} Qxf4 {[%emt 0:00:03]} 21. Qd2 {[%emt 0:00:06]} Qg3 {[%emt 0:00:05]} 22. Re3 {[%emt 0:00:09]} Bh6 {[%emt 0:00:32]} 23. Rxg3 {[%emt 0:00:01]} Bxd2 {[%emt 0:00:01]} 24. Bxd6 {[%emt 0:00:05]} Re2 {[%emt 0:00:04]} 25. Nxd2 {[%emt 0:00:01]} Rxd2 {[%emt 0:00:02]} 26. Bc5 {[%emt 0:00:05]} Rxd5 {[%emt 0:00:03]} 27. Bd4 {[%emt 0:00:01]} Re8 {[%emt 0:00:03]} 28. Re3 {[%emt 0:00:02]} Rxe3 {[%emt 0:00:03]} 29. Bxe3 {[%emt 0:00:01]} Re5 {[%emt 0:00:02]} 30. Kf2 {[%emt 0:00:03]} Bc6 {[%emt 0:00:00]} 31. Rd1 {[%emt 0:00:04]} Bxg2 {[%emt 0:00:06]} 32. Rd8+ {[%emt 0:00:03]} Kg7 {[%emt 0:00:01]} 33. Bd4 {[%emt 0:00:00]} f6 {[%emt 0:00:06]} 34. Bxe5 {[%emt 0:00:01]} fxe5 {[%emt 0:00:01]} 35. Kxg2 {[%emt 0:00:01]} Kf6 {[%emt 0:00:01]} 36. Kf3 {[%emt 0:00:01]} Ke7 {[%emt 0:00:01]} 37. Ra8 {[%emt 0:00:01]} Kf6 {[%emt 0:00:01]} 38. Rxa6+ {[%emt 0:00:01]} Kf5 {[%emt 0:00:01]} 39. Ra7 {[%emt 0:00:02]} g5 {[%emt 0:00:02]} 40. Rxh7 {[%emt 0:00:02] Ke4+ Kxe4} 1-0

[Event "GER-chW Blitz 2019"]
[Site "Magdeburg"]
[Date "2019.05.25"]
[Round "4.11"]
[White "Michna, Marta"]
[Black "Hofmann, Karina"]
[Result "1-0"]
[ECO "A04"]
[WhiteElo "2355"]
[BlackElo "1700"]
[Annotator "NA"]
[PlyCount "89"]
[EventDate "2019.05.25"]
[EventType "tourn"]
[EventCountry "GER"]
[SourceTitle "playchess.com"]
[Source "ChessBase"]
[SourceQuality "1"]
[TimeControl "180+2"]

1. Nf3 {[%emt 0:00:01]} b6 {[%emt 0:00:00]} 2. g3 {[%emt 0:00:01]} Bb7 {[%emt 0:00:01]} 3. Bg2 {[%emt 0:00:00]} d5 {[%emt 0:00:05]} 4. O-O {[%emt 0:00:02]} e6 {[%emt 0:00:01]} 5. d3 {[%emt 0:00:00]} Bd6 {[%emt 0:00:01]} 6. Nbd2 {[%emt 0:00:02]} Ne7 {[%emt 0:00:01]} 7. e4 {[%emt 0:00:01]} Ng6 {[%emt 0:00:08]} 8. c3 {[%emt 0:00:07]} dxe4 9. dxe4 {[%emt 0:00:01]} O-O {[%emt 0:00:10]} 10. Re1 {[%emt 0:00:01]} c5 {[%emt 0:00:07]} 11. a4 {[%emt 0:00:08]} a6 {[%emt 0:00:02]} 12. Qc2 {[%emt 0:00:16]} Nd7 {[%emt 0:00:05]} 13. Nc4 {[%emt 0:00:13]} Qe7 {[%emt 0:00:08]} 14. Bg5 {[%emt 0:00:08]} f6 {[%emt 0:00:01]} 15. Nxd6 {[%emt 0:00:09]} Qxd6 {[%emt 0:00:02]} 16. Rad1 {[%emt 0:00:02]} Qe7 {[%emt 0:00:02]} 17. Bc1 {[%emt 0:00:08]} Rfd8 {[%emt 0:00:02]} 18. Qb3 {[%emt 0:00:08]} Kh8 {[%emt 0:00:07]} 19. h4 {[%emt 0:00:01]} Rac8 {[%emt 0:00:08]} 20. h5 {[%emt 0:00:04]} c4 {[%emt 0:00:09]} 21. Qc2 {[%emt 0:00:09]} Nge5 {[%emt 0:00:06]} 22. Nd4 {[%emt 0:00:07]} Qf7 {[%emt 0:00:10]} 23. Qe2 {[%emt 0:00:06]} Nc6 {[%emt 0:00:07]} 24. Qxc4 {[%emt 0:00:24]} Nxd4 {[%emt 0:00:15]} 25. Qxd4 {[%emt 0:00:02]} Qxh5 {[%emt 0:00:09]} 26. b4 {[%emt 0:00:08]} Qe5 {[%emt 0:00:05]} 27. Be3 {[%emt 0:00:10]} Qxd4 {[%emt 0:00:03]} 28. cxd4 {[%emt 0:00:01]} Rc4 {[%emt 0:00:02]} 29. b5 {[%emt 0:00:09]} Rxa4 {[%emt 0:00:02]} 30. bxa6 {[%emt 0:00:08]} Bxa6 {[%emt 0:00:03]} 31. d5 {[%emt 0:00:05]} Nf8 {[%emt 0:00:18]} 32. Bxb6 {[%emt 0:00:04]} Rb8 {[%emt 0:00:17]} 33. Bc5 {[%emt 0:00:05]} exd5 {[%emt 0:00:02]} 34. exd5 {[%emt 0:00:02]} Nd7 {[%emt 0:00:02]} 35. Bd6 {[%emt 0:00:03]} Rd8 {[%emt 0:00:07]} 36. Re7 {[%emt 0:00:06]} Rc4 {[%emt 0:00:16]} 37. Bf4 {[%emt 0:00:10]} Ne5 {[%emt 0:00:06]} 38. Bxe5 {[%emt 0:00:01]} fxe5 39. Rxe5 {[%emt 0:00:02]} Rcc8 {[%emt 0:00:06]} 40. d6 {[%emt 0:00:03]} h6 41. Re7 {[%emt 0:00:09]} Re8 {[%emt 0:00:12]} 42. Bh3 {[%emt 0:00:02]} Rxe7 {[%emt 0:00:08]} 43. dxe7 {[%emt 0:00:01]} Rb8 {[%emt 0:00:05]} 44. Rd8+ {[%emt 0:00:02]} Rxd8 {[%emt 0:00:02]} 45. exd8=Q+ {[%emt 0:00:04]} 1-0

[Event "GER-chW Blitz 2019"]
[Site "Magdeburg"]
[Date "2019.05.25"]
[Round "4.12"]
[White "Muetsch, Annmarie"]
[Black "Siegl, Melina"]
[Result "1-0"]
[ECO "B80"]
[WhiteElo "2266"]
[BlackElo "2029"]
[Annotator "NA"]
[PlyCount "70"]
[EventDate "2019.05.25"]
[EventType "tourn"]
[EventCountry "GER"]
[SourceTitle "playchess.com"]
[Source "ChessBase"]
[SourceQuality "1"]
[TimeControl "180+2"]

1. e4 {[%emt 0:00:00]} c5 {[%emt 0:00:00]} 2. Nf3 {[%emt 0:00:00]} e6 {[%emt 0:00:00]} 3. d4 {[%emt 0:00:01]} cxd4 {[%emt 0:00:01]} 4. Nxd4 {[%emt 0:00:01]} Nf6 {[%emt 0:00:01]} 5. Nc3 {[%emt 0:00:01]} d6 {[%emt 0:00:01]} 6. g3 {[%emt 0:00:09]} a6 {[%emt 0:00:01]} 7. Bg2 {[%emt 0:00:02]} Nbd7 {[%emt 0:00:01]} 8. O-O {[%emt 0:00:02]} Qc7 {[%emt 0:00:05]} 9. Be3 {[%emt 0:00:07]} Ne5 {[%emt 0:00:04]} 10. h3 {[%emt 0:00:09]} b5 {[%emt 0:00:03]} 11. f4 {[%emt 0:00:16]} Nc4 {[%emt 0:00:01]} 12. Bc1 {[%emt 0:00:01]} Bb7 {[%emt 0:00:03]} 13. b3 {[%emt 0:00:16]} Nb6 {[%emt 0:00:05]} 14. Qd3 {[%emt 0:00:15]} Rc8 {[%emt 0:00:10]} 15. Bb2 {[%emt 0:00:02]} e5 {[%emt 0:00:34]} 16. fxe5 {[%emt 0:00:18]} dxe5 {[%emt 0:00:02]} 17. Nf5 {[%emt 0:00:14]} Bc5+ {[%emt 0:00:56]} 18. Kh2 {[%emt 0:00:05]} g6 {[%emt 0:00:17]} 19. Ne3 {[%emt 0:00:07]} Nh5 {[%emt 0:00:13]} 20. Ncd5 {[%emt 0:00:08]} Nxd5 {[%emt 0:00:12]} 21. Nxd5 {[%emt 0:00:02]} Bxd5 {[%emt 0:00:37]} 22. Qxd5 {[%emt 0:00:02]} Bd6 {[%emt 0:00:04]} 23. Rad1 {[%emt 0:00:07]} Rd8 {[%emt 0:00:04]} 24. c4 {[%emt 0:00:20]} O-O {[%emt 0:00:01]} 25. cxb5 {[%emt 0:00:18]} axb5 {[%emt 0:00:01]} 26. Qxb5 {[%emt 0:00:05]} Qe7 {[%emt 0:00:03]} 27. Bf3 {[%emt 0:00:09]} Qg5 {[%emt 0:00:07]} 28. Bxh5 {[%emt 0:00:05]} gxh5 {[%emt 0:00:02]} 29. Qe2 {[%emt 0:00:06]} Kh8 {[%emt 0:00:02]} 30. Rf5 {[%emt 0:00:03]} Qg7 {[%emt 0:00:03]} 31. Qxh5 {[%emt 0:00:04]} Rg8 {[%emt 0:00:01]} 32. Qf3 {[%emt 0:00:04]} f6 {[%emt 0:00:05]} 33. Rxf6 {[%emt 0:00:10]} Be7 34. Rxd8 Bxf6 35. Rxg8+ Qxg8 1-0

[Event "GER-chW Blitz 2019"]
[Site "Magdeburg"]
[Date "2019.05.25"]
[Round "5.1"]
[White "Siegl, Melina"]
[Black "Roesler, Hannah Clara Hed"]
[Result "1-0"]
[ECO "B27"]
[WhiteElo "2029"]
[BlackElo "1619"]
[Annotator "NA"]
[PlyCount "76"]
[EventDate "2019.05.25"]
[EventType "tourn"]
[EventCountry "GER"]
[SourceTitle "playchess.com"]
[Source "ChessBase"]
[SourceQuality "1"]
[TimeControl "180+2"]

1. e4 {[%emt 0:00:00]} c5 {[%emt 0:00:00]} 2. Nf3 {[%emt 0:00:02]} g6 {[%emt 0:00:00]} 3. d3 {[%emt 0:00:01]} Bg7 {[%emt 0:00:05]} 4. g3 {[%emt 0:00:00]} Nc6 {[%emt 0:00:07]} 5. c3 {[%emt 0:00:01]} d5 {[%emt 0:00:18]} 6. Nbd2 {[%emt 0:00:02]} Nf6 {[%emt 0:00:29]} 7. Bg2 {[%emt 0:00:03]} O-O {[%emt 0:00:09]} 8. O-O {[%emt 0:00:03]} Qc7 {[%emt 0:00:12]} 9. Re1 {[%emt 0:00:10]} dxe4 {[%emt 0:00:10]} 10. dxe4 {[%emt 0:00:01]} Rd8 {[%emt 0:00:03]} 11. Qc2 {[%emt 0:00:10]} Bg4 {[%emt 0:00:24]} 12. Nf1 {[%emt 0:00:07]} Qc8 {[%emt 0:00:09]} 13. Ne3 {[%emt 0:00:30]} Bh3 {[%emt 0:00:06]} 14. Bh1 {[%emt 0:00:07]} Ng4 {[%emt 0:00:15]} 15. Ng5 {[%emt 0:00:12]} Nge5 {[%emt 0:00:11]} 16. Nxh3 {[%emt 0:00:41]} Qxh3 {[%emt 0:00:02]} 17. Bg2 {[%emt 0:00:02]} Qh5 {[%emt 0:00:03]} 18. Qe2 {[%emt 0:00:23]} Qxe2 {[%emt 0:00:14]} 19. Rxe2 {[%emt 0:00:02]} Nd3 {[%emt 0:00:05]} 20. Nd5 {[%emt 0:00:08]} e6 {[%emt 0:00:08]} 21. Nf4 {[%emt 0:00:13]} Nce5 {[%emt 0:00:05]} 22. Be3 {[%emt 0:00:04]} c4 {[%emt 0:00:06]} 23. Bd4 {[%emt 0:00:06]} b5 {[%emt 0:00:05]} 24. Rd1 {[%emt 0:00:05]} Rd7 {[%emt 0:00:10]} 25. Nxd3 {[%emt 0:00:02]} Nxd3 {[%emt 0:00:02]} 26. e5 {[%emt 0:00:08]} a6 {[%emt 0:00:03]} 27. Bxa8 {[%emt 0:00:03]} Rd8 {[%emt 0:00:05]} 28. Bg2 {[%emt 0:00:02]} Nxe5 {[%emt 0:00:04]} 29. Ree1 {[%emt 0:00:03]} f6 {[%emt 0:00:03]} 30. Bxe5 {[%emt 0:00:03]} Rxd1 {[%emt 0:00:03]} 31. Rxd1 {[%emt 0:00:00]} fxe5 {[%emt 0:00:01]} 32. Be4 {[%emt 0:00:02]} Kf7 {[%emt 0:00:01]} 33. Rd7+ {[%emt 0:00:02]} Kf6 {[%emt 0:00:01]} 34. h4 {[%emt 0:00:02]} Bh6 {[%emt 0:00:02]} 35. Ra7 {[%emt 0:00:03]} Bc1 {[%emt 0:00:02]} 36. b3 {[%emt 0:00:07]} Bb2 {[%emt 0:00:06]} 37. bxc4 {[%emt 0:00:03]} bxc4 38. Rxa6 Bxc3 1-0

[Event "GER-chW Blitz 2019"]
[Site "Magdeburg"]
[Date "2019.05.25"]
[Round "5.2"]
[White "Hofmann, Karina"]
[Black "Muetsch, Annmarie"]
[Result "0-1"]
[ECO "A03"]
[WhiteElo "1700"]
[BlackElo "2266"]
[Annotator "NA"]
[PlyCount "92"]
[EventDate "2019.05.25"]
[EventType "tourn"]
[EventCountry "GER"]
[SourceTitle "playchess.com"]
[Source "ChessBase"]
[SourceQuality "1"]
[TimeControl "180+2"]

1. f4 {[%emt 0:00:00]} d5 {[%emt 0:00:00]} 2. Nf3 {[%emt 0:00:00]} Nf6 {[%emt 0:00:02]} 3. e3 {[%emt 0:00:01]} g6 {[%emt 0:00:02]} 4. b3 {[%emt 0:00:02]} Bg7 {[%emt 0:00:01]} 5. Nc3 {[%emt 0:00:01]} O-O {[%emt 0:00:02]} 6. Bb2 {[%emt 0:00:01]} c5 {[%emt 0:00:02]} 7. d4 {[%emt 0:00:02]} b6 {[%emt 0:00:03]} 8. Bd3 {[%emt 0:00:01]} Nc6 {[%emt 0:00:03]} 9. Qe2 {[%emt 0:00:05]} Bb7 {[%emt 0:00:04]} 10. O-O-O {[%emt 0:00:03]} Na5 {[%emt 0:00:14]} 11. Ne5 {[%emt 0:00:04]} Rc8 {[%emt 0:00:08]} 12. Nb5 {[%emt 0:00:04]} a6 {[%emt 0:00:07]} 13. Nc3 {[%emt 0:00:03]} Nd7 {[%emt 0:00:31]} 14. dxc5 {[%emt 0:00:11]} Nxe5 {[%emt 0:00:12]} 15. Bxa6 {[%emt 0:00:14]} Bxa6 {[%emt 0:00:04]} 16. Qxa6 {[%emt 0:00:02]} Nd7 {[%emt 0:00:10]} 17. cxb6 {[%emt 0:00:04]} Qxb6 {[%emt 0:00:07]} 18. Qxb6 {[%emt 0:00:11]} Nxb6 {[%emt 0:00:01]} 19. Nxd5 {[%emt 0:00:03]} Nxd5 {[%emt 0:00:05]} 20. Rxd5 {[%emt 0:00:02]} Nc6 {[%emt 0:00:09]} 21. Bxg7 {[%emt 0:00:07]} Kxg7 {[%emt 0:00:01]} 22. c4 {[%emt 0:00:02]} e6 {[%emt 0:00:10]} 23. Rd6 {[%emt 0:00:05]} Kf6 {[%emt 0:00:13]} 24. e4 {[%emt 0:00:04]} Ke7 {[%emt 0:00:03]} 25. Rhd1 {[%emt 0:00:03]} Rfd8 {[%emt 0:00:02]} 26. Rxd8 {[%emt 0:00:04]} Nxd8 {[%emt 0:00:03]} 27. Kc2 {[%emt 0:00:02]} Nc6 {[%emt 0:00:04]} 28. Kc3 {[%emt 0:00:02]} f6 {[%emt 0:00:06]} 29. b4 {[%emt 0:00:01]} e5 {[%emt 0:00:02]} 30. fxe5 {[%emt 0:00:04]} fxe5 {[%emt 0:00:02]} 31. Rd5 {[%emt 0:00:03]} Ke6 {[%emt 0:00:02]} 32. b5 {[%emt 0:00:04]} Nd4 {[%emt 0:00:07]} 33. a4 {[%emt 0:00:06]} Ne2+ {[%emt 0:00:06]} 34. Kb4 {[%emt 0:00:01]} Nf4 {[%emt 0:00:02]} 35. Rc5 {[%emt 0:00:11]} Nd3+ {[%emt 0:00:01]} 36. Ka5 {[%emt 0:00:05]} Nxc5 {[%emt 0:00:02]} 37. b6 {[%emt 0:00:03]} Kd6 {[%emt 0:00:04]} 38. Kb5 {[%emt 0:00:02]} Ra8 {[%emt 0:00:09]} 39. a5 {[%emt 0:00:01]} g5 {[%emt 0:00:04]} 40. g4 {[%emt 0:00:04]} h6 {[%emt 0:00:04]} 41. h3 {[%emt 0:00:00]} Rc8 {[%emt 0:00:28]} 42. a6 {[%emt 0:00:03]} Nxa6 {[%emt 0:00:02]} 43. Kxa6 {[%emt 0:00:01]} Rxc4 {[%emt 0:00:02]} 44. b7 {[%emt 0:00:01]} Rb4 {[%emt 0:00:01]} 45. Ka7 {[%emt 0:00:02]} Kc7 {[%emt 0:00:03]} 46. Ka6 {[%emt 0:00:04]} Rxb7 {[%emt 0:00:02]} 0-1

[Event "GER-chW Blitz 2019"]
[Site "Magdeburg"]
[Date "2019.05.25"]
[Round "5.3"]
[White "Birkholz, Olga"]
[Black "Michna, Marta"]
[Result "0-1"]
[ECO "E94"]
[WhiteElo "2031"]
[BlackElo "2355"]
[Annotator "NA"]
[PlyCount "70"]
[EventDate "2019.05.25"]
[EventType "tourn"]
[EventCountry "GER"]
[SourceTitle "playchess.com"]
[Source "ChessBase"]
[SourceQuality "1"]
[TimeControl "180+2"]

1. d4 {[%emt 0:00:00]} Nf6 {[%emt 0:00:00]} 2. c4 {[%emt 0:00:01]} d6 {[%emt 0:00:00]} 3. Nc3 {[%emt 0:00:02]} Nbd7 {[%emt 0:00:00]} 4. e4 {[%emt 0:00:02]} e5 {[%emt 0:00:00]} 5. Nf3 {[%emt 0:00:05]} g6 {[%emt 0:00:01]} 6. Be2 {[%emt 0:00:05]} Bg7 {[%emt 0:00:01]} 7. O-O {[%emt 0:00:02]} O-O {[%emt 0:00:01]} 8. b4 {[%emt 0:00:06]} a5 {[%emt 0:00:05]} 9. bxa5 {[%emt 0:00:06]} exd4 {[%emt 0:00:08]} 10. Nxd4 {[%emt 0:00:02]} Nc5 {[%emt 0:00:01]} 11. Bf3 {[%emt 0:00:14]} Rxa5 {[%emt 0:00:05]} 12. Bg5 {[%emt 0:00:14]} h6 {[%emt 0:00:05]} 13. Bd2 {[%emt 0:00:11]} Ra8 {[%emt 0:00:05]} 14. Qc1 {[%emt 0:00:08]} Kh7 {[%emt 0:00:02]} 15. Nb3 {[%emt 0:00:01]} Nd3 {[%emt 0:00:03]} 16. Qc2 {[%emt 0:00:07]} Nb4 {[%emt 0:00:22]} 17. Qc1 {[%emt 0:00:14]} Nd7 {[%emt 0:00:08]} 18. a3 {[%emt 0:00:06]} Nc6 {[%emt 0:00:04]} 19. Nd5 {[%emt 0:00:08]} Nce5 {[%emt 0:00:10]} 20. Be2 {[%emt 0:00:09]} c6 {[%emt 0:00:00]} 21. Ne3 {[%emt 0:00:05]} Nf6 {[%emt 0:00:46]} 22. f4 {[%emt 0:00:09]} Ned7 {[%emt 0:00:03]} 23. Qc2 {[%emt 0:00:17]} Qe7 {[%emt 0:00:01]} 24. Bd3 {[%emt 0:00:05]} Re8 25. f5 g5 {[%emt 0:00:15]} 26. Rfe1 {[%emt 0:00:22]} Ne5 {[%emt 0:00:01]} 27. Bc3 {[%emt 0:00:09]} Nh5 {[%emt 0:00:12]} 28. Bf1 {[%emt 0:00:07]} Nf4 {[%emt 0:00:04]} 29. g3 {[%emt 0:00:04]} Nf3+ {[%emt 0:00:01]} 30. Kf2 {[%emt 0:00:02]} Nxe1 {[%emt 0:00:04]} 31. Rxe1 {[%emt 0:00:02]} Bxc3 {[%emt 0:00:05]} 32. Qxc3 {[%emt 0:00:01]} Nh5 {[%emt 0:00:00]} 33. Nd4 {[%emt 0:00:03]} Nf6 {[%emt 0:00:02]} 34. g4 {[%emt 0:00:03]} Nxe4+ {[%emt 0:00:01]} 35. Kg2 {[%emt 0:00:02]} Nxc3 {[%emt 0:00:01]} 0-1